Cogmind - Beta 15 @@@ ROGUE MODE // 2025.05.14 @ 21:45:21 Player: Jay Result: Destroyed by H-61 Shepherd with Heavy Assault Cannon Performance ------------- Evolutions (2) 1000 Regions Visited (3) 600 Robots Destroyed (44) 220 Value Destroyed (1768) 1768 Prototype IDs (3) 60 Alien Tech Used (0) 0 Bonus (0) 0 TOTAL SCORE: 3648 Bonus ------- None Cogmind --------- Core Integrity 0/550 Matter 298/300 Energy 100/100 System Corruption 8% Temperature Cool (48) Movement Walking (120) Location -8/Materials Parts ------- > --- POWER (1) -------- (None) > --- PROPULSION (3) --- Aluminum Leg > --- UTILITY (4) ------ Improved Heat Sink > --- WEAPON (3) ------- Pulse Rifle > --- INVENTORY (5) ---- Cryofiber Web Trap Scanner Advanced Visual Processing Unit Particle Charger Peak State ------------ > --- POWER ------------ Nuclear Core > --- PROPULSION ------- Aluminum Leg Carbon-fiber Leg Improved Carbon-fiber Leg > --- UTILITY ---------- Improved Heat Sink Medium Storage Unit Advanced Weight Redist. System Signal Interpreter > --- WEAPON ----------- Heavy EM Pulse Gun Pulse Rifle Autogun > --- INVENTORY -------- Backup Power I Deuterium Engine Improved Deuterium Engine Cryofiber Web Improved Cooling System Advanced Weight Redist. System Trap Scanner Advanced Visual Processing Unit Particle Charger Backup Plating I [Rating: 28] Favorites ----------- Power Light Ion Engine Engine Light Ion Engine Power Core Nuclear Core Propulsion Aluminum Leg Leg Aluminum Leg Utility Medium Storage Unit Device Improved Heat Sink Storage Medium Storage Unit Processor Signal Interpreter Protection Light Armor Plating Weapon Autogun Energy Gun Pulse Rifle Energy Cannon EM Pulse Cannon Ballistic Gun Autogun Build | -11 -10 -9 -8 ------- Run | Yrd Mat Mat Mat Slots Evolved 4 | . . 2 2 Power . | . . . . Propulsion 1 | . . . 1 Utility 2 | . . 1 1 Weapon 1 | . . 1 . Parts Attached 44 | 6 4 6 28 Power 8 | 1 2 1 4 Engine 6 | 1 1 1 3 Core 2 | . 1 . 1 Reactor . | . . . . Propulsion 15 | 2 1 1 11 Treads . | . . . . Leg 15 | 2 1 1 11 Wheel . | . . . . Hover . | . . . . Flight . | . . . . Utility 10 | 1 1 2 6 Device 2 | . . . 2 Storage 3 | 1 1 1 . Processor 1 | . . . 1 Hackware . | . . . . Protection 4 | . . 1 3 Artifact . | . . . . Weapon 11 | 2 . 2 7 Energy Gun 3 | . . . 3 Energy Cannon 1 | . . . 1 Ballistic Gun 7 | 2 . 2 3 Ballistic Cannon . | . . . . Launcher . | . . . . Special Weapon . | . . . . Impact Weapon . | . . . . Slashing Weapon . | . . . . Piercing Weapon . | . . . . Special Melee Weapon . | . . . . Unidentified Prototypes . | . . . . Corrupted Parts 2 | . . . 2 System Corruption 6 | . . . 6 Parts Lost 28 | . . 2 26 Power 4 | . . 1 3 Propulsion 9 | . . . 9 Utility 7 | . . . 7 Weapon 8 | . . 1 7 Highest Loss Streak 12 | . . 2 12 To Critical Strikes . | . . . . Average Backups 8 | 1 5 8 9 Power 2 | . 1 2 2 Propulsion 1 | . 1 2 1 Utility 1 | . . . 2 Weapon 2 | . 2 3 2 Tool/Special . | . . . . Unused Backups 12 | . . 2 10 Power 2 | . . . 2 Propulsion 2 | . . . 2 Utility 6 | . . . 6 Weapon 2 | . . 2 . Tool/Special . | . . . . Average Slot Usage (%) 94 | . 91 99 93 Engine 7 | . 7 10 6 Core 2 | . 6 . 2 Leg 24 | . 28 22 23 Device 6 | . . . 10 Storage 16 | . 20 22 13 Processor 4 | . . . 7 Protection 5 | . . 10 4 Energy Gun 2 | . . . 3 Energy Cannon 3 | . . . 5 Ballistic Gun 22 | . 28 32 17 Peak Build Rating 28 | 6 9 11 28 Average Rating 14 | 3 7 9 18 On Entrance 6 | . 6 7 11 Naked Turns . | . . . . Heaviest Build 33 | 12 18 26 33 Greatest Support 52 | 20 20 20 52 Greatest Overweight (x) 2 | 1 . 2 2 Average Overweight (x) . | . . . . Largest Inventory Capacity 10 | 8 8 10 10 Average Capacity 9 | 6 8 8 9 Most Carried 10 | 5 8 10 10 Average Carried 8 | 2 5 8 9 Final Capacity 10 | 8 8 10 5 Final Carried 10 | 2 8 10 4 Class Distribution -------------------- 29% | Scavenger-Gunner 24% | Scavenger-Tank 23% | Tank 18% | Mutant Dominant Class ---------------- Mutant | -10/Materials Tank | -9/Materials Scavenger-Gunner | -8/Materials Resources | -11 -10 -9 -8 ----------- Run | Yrd Mat Mat Mat Matter Collected 1725 | 211 274 305 935 Remotely . | . . . . Salvage Created 2052 | . 232 276 1544 Parts 99 | . 15 15 69 Haulers Intercepted . | . . . . Recyclers Shooed . | . . . . Parts Field Recycled . | . . . . Retrieved Matter . | . . . . Parts Self-Destructed . | . . . . Prevented . | . . . . Kills | -11 -10 -9 -8 ------- Run | Yrd Mat Mat Mat Combat Hostiles Destroyed 38 | . 7 6 25 Guns 30 | . 7 6 17 Cannons 6 | . . . 6 AOE 1 | . . . 1 Classes Destroyed 9 | . 3 2 4 Worker 2 | . . . 2 Recycler 1 | . . . 1 Watcher 3 | . 1 . 2 Swarmer 3 | . 3 . . Grunt 22 | . 4 4 14 Duelist 1 | . . 1 . Sentry 6 | . . 1 5 Specialist 4 | . . . 4 Hunter 2 | . . . 2 Best Kill Streak 4 | . 3 2 4 Combat Bots Only 3 | . 3 2 3 Max Kills in Single Turn 2 | . 2 1 2 Gunslinging 1 | . . . 1 Exploded 1 | . . . 1 Melee . | . . . . Uniques/NPCs Destroyed . | . . . . Combat | -11 -10 -9 -8 -------- Run | Yrd Mat Mat Mat Hostile Shots Fired 274 | . 33 22 219 Missed 75 | . 14 8 53 Hits 199 | . 19 14 166 Melee 3 | . . 3 . Projectile 196 | . 19 11 166 Critical Strikes 13 | . . 1 12 Damage Taken 3571 | . 206 217 3148 Core 643 | . 62 10 571 Absorbed by Shields . | . . . . Core Remaining (%) 90 | 100 75 97 . Volleys Fired 160 | . 23 18 119 Largest 3 | . 2 3 3 Hottest 131 | . 40 63 131 Shots Fired 401 | . 46 53 302 Gun 356 | . 46 53 257 Cannon 45 | . . . 45 Launcher . | . . . . Special . | . . . . Kinetic 309 | . 46 53 210 Thermal 27 | . . . 27 Explosive . | . . . . Electromagnetic 65 | . . . 65 Robot Hit Streak 12 | . 11 10 12 Robot Miss Streak 17 | . 5 3 17 Penetration Max . | . . . . Secondary Targets 7 | . 1 1 5 Max Gunslinging Chain 2 | . 1 1 2 Shots Hit Robots 250 | . 29 34 187 Core Hits 90 | . 15 12 63 Critical Kills 3 | . 2 . 1 Critical Parts Destroyed 2 | . . . 2 Critical Strikes 6 | . 2 . 4 Burn 1 | . . . 1 Destroy 5 | . 2 . 3 Melee Attacks . | . . . . Impact . | . . . . Slashing . | . . . . Piercing . | . . . . Sneak Attacks . | . . . . Combat Hostiles . | . . . . Follow-up Attacks . | . . . . Damage Inflicted 3971 | . 395 397 3179 Guns 2907 | . 395 397 2115 Cannons 868 | . . . 868 Explosions 196 | . . . 196 Melee . | . . . . Ramming . | . . . . Kinetic 2407 | . 395 397 1615 Thermal 521 | . . . 521 Explosive . | . . . . Electromagnetic 1043 | . . . 1043 Impact . | . . . . Slashing . | . . . . Piercing . | . . . . Highest Corruption 8 | . . . 8 Average Corruption 6 | . . . 6 Corruption Purged . | . . . . Corruption Blocked . | . . . . Effects 26 | . . . 26 Message Errors 3 | . . . 3 Matter Fused 5 | . . . 5 Heat Flow Errors 2 | . . . 2 Energy Discharges 3 | . . . 3 Data Loss (minor) 4 | . . . 4 Data Loss (major) 4 | . . . 4 Misfires 2 | . . . 2 Weapon Failures 3 | . . . 3 Overload Shots . | . . . . Overflow Damage 27 | . . . 27 Projectiles 27 | . . . 27 Explosions . | . . . . Melee . | . . . . Knockbacks . | . . . . Impact . | . . . . Kinetic . | . . . . Secondary . | . . . . Self-Inflicted Damage 54 | . . . 54 Shots 1 | . . . 1 Rammed . | . . . . Targets Rammed . | . . . . Kicked . | . . . . Crushed . | . . . . Highest Temperature 304 | . 4 53 304 Average Temperature 71 | . 1 17 79 Received Heat Transfer 1344 | . 90 84 1170 Siege Activations . | . . . . Martial Activations . | . . . . Shielding Activations . | . . . . Robots Disrupted . | . . . . Combat Hostiles . | . . . . Robots Corrupted 1 | . . . 1 Combat Hostiles 1 | . . . 1 Parts Fried 8 | . . . 8 Impact Corruptions . | . . . . Robots Melted . | . . . . Combat Hostiles . | . . . . Parts Melted 4 | . . . 4 Heat Transferred 977 | . . . 977 Parts Sabotaged . | . . . . Parts Stolen . | . . . . Parts Stripped . | . . . . Power Chain Reactions 2 | . . . 2 Alert | -11 -10 -9 -8 ------- Run | Yrd Mat Mat Mat Maximum Alert Level 1 | . . . 1 Low Security (%) 95 | 100 100 100 93 Level 1 4 | . . . 6 Level 2 . | . . . . Level 3 . | . . . . Level 4 . | . . . . Level 5 . | . . . . High Security . | . . . . Max Security . | . . . . Peak Influence 233 | . 110 55 233 Initial 37 | . . 37 22 Average 62 | . 43 14 86 Influence Increases 1206 | . 190 190 826 Destroy 0b10 Robot/C 760 | . 140 120 500 Destroy 0b10 Robot/NC 30 | . 5 . 25 Destroy Leader 206 | . 32 40 134 Successful Hack 15 | . 12 . 3 Disable Machine 45 | . . . 45 Destroy Structure 15 | . 1 . 14 Lose Combat Pursuer 135 | . . 30 105 Influence Decreases 1065 | . 100 226 739 Entered New Map 85 | . . 53 32 Time Decay 730 | . 100 173 457 Lost Part 250 | . . . 250 Squads Dispatched 9 | . . 2 7 Investigation 3 | . . 1 2 Extermination . | . . . . Reinforcement 6 | . . 1 5 Assault . | . . . . Garrison . | . . . . Intercept . | . . . . Searches Triggered . | . . . . Construction Impeded 1 | . . . 1 Haulers Reinforced . | . . . . Active Scanning Responses . | . . . . Cargo Convoy Interrupts . | . . . . Stealth | -11 -10 -9 -8 --------- Run | Yrd Mat Mat Mat Distress Signals 6 | . 1 . 5 Communications Jammed . | . . . . Distress Signals . | . . . . Times Spotted 67 | . 12 9 46 Peak Tracking Total 6 | . 5 3 6 Tactical Retreats 7 | . . 2 5 Traps | -11 -10 -9 -8 ------- Run | Yrd Mat Mat Mat Traps Triggered 3 | . . 1 2 Indirectly . | . . . . Trap Hack Attempts . | . . . . Triggered . | . . . . Disarmed . | . . . . Reprogrammed . | . . . . Reused . | . . . . Traps Extracted . | . . . . Installed . | . . . . Triggered . | . . . . Machines | -11 -10 -9 -8 ---------- Run | Yrd Mat Mat Mat Machines Disabled 3 | . . . 3 Max in Single Turn 1 | . . . 1 Machines Repaired . | . . . . Machines Dismantled . | . . . . Machines Sabotaged . | . . . . Overloaded Fab Kills . | . . . . Hacking | -11 -10 -9 -8 --------- Run | Yrd Mat Mat Mat Machines Accessed 8 | . 1 . 7 Terminals 5 | . 1 . 4 Fabricators . | . . . . Repair Stations 1 | . . . 1 Recycling Units 1 | . . . 1 Scanalyzers 1 | . . . 1 Garrison Access . | . . . . Total Hacks 33 | . 2 . 31 Successful 22 | . 1 . 21 Failed 11 | . 1 . 10 Catastrophic 1 | . . . 1 Database Lockouts . | . . . . Manual . | . . . . Terminals 20 | . 2 . 18 Fabricators . | . . . . Repair Stations 3 | . . . 3 Recycling Units 3 | . . . 3 Scanalyzers 7 | . . . 7 Garrison Access . | . . . . Terminal Hacks 11 | . 1 . 10 Record 8 | . 1 . 7 Prototype ID Bank 2 | . . . 2 Emergency Access Points 1 | . . . 1 Fabricator Hacks . | . . . . Repair Station Hacks 2 | . . . 2 Scan Component 1 | . . . 1 Repair 1 | . . . 1 Recycling Unit Hacks 2 | . . . 2 Report Inventory 1 | . . . 1 Retrieve Matter 1 | . . . 1 Scanalyzer 7 | . . . 7 Insert Component 4 | . . . 4 Analyze 3 | . . . 3 Garrison Access Hacks . | . . . . Unauthorized Hacks . | . . . . Terminals . | . . . . Fabricators . | . . . . Repair Stations . | . . . . Recycling Units . | . . . . Scanalyzers . | . . . . Garrison Access . | . . . . Data Cores Recovered . | . . . . Used . | . . . . Hacking Detections 7 | . 1 . 6 Full Trace Events 1 | . . . 1 Feedback Events . | . . . . Feedback Blocked . | . . . . Robot Schematics Acquired . | . . . . Robots Built . | . . . . Authchips . | . . . . Time . | . . . . Total Robot Build Rating . | . . . . Part Schematics Acquired 3 | . . . 3 Parts Built . | . . . . Authchips . | . . . . Time . | . . . . Total Part Build Rating . | . . . . Parts Repaired . | . . . . Time 26 | . . . 26 Parts Recycled . | . . . . Recycled Matter . | . . . . Retrieved Matter 42 | . . . 42 Retrieved Components . | . . . . Parts Scanalyzed 3 | . . . 3 Part Schematics Acquired 3 | . . . 3 Parts Damaged . | . . . . Bothacking | -11 -10 -9 -8 ------------ Run | Yrd Mat Mat Mat Used RIF Installer . | . . . . Robots Hacked . | . . . . Non-combat . | . . . . Combat . | . . . . Robot Hacks Applied . | . . . . Relay Couplers Released . | . . . . Fabnet Peak Effective % . | . . . . Robots Rewired . | . . . . Allies Hacked . | . . . . Hacks Repelled . | . . . . Allies | -11 -10 -9 -8 -------- Run | Yrd Mat Mat Mat Total Allies . | . . . . Largest Group . | . . . . Highest-Rated Group . | . . . . Highest-Rated Ally . | . . . . Total Orders . | . . . . Ally Attacks . | . . . . Total Damage . | . . . . Kills . | . . . . Allies Corrupted . | . . . . Allies Melted . | . . . . Intel | -11 -10 -9 -8 ------- Run | Yrd Mat Mat Mat Active Infowar (turns) . | . . . . Robot Analysis Total . | . . . . Derelict Logs Recovered . | . . . . Drone Launches . | . . . . Drone Recoveries . | . . . . Exploration | -11 -10 -9 -8 ------------- Run | Yrd Mat Mat Mat Turns Passed 2728 | 44 378 638 1668 Spaces Moved 1136 | 36 175 210 715 Core 50 | 17 . . 33 Treads . | . . . . Legs 1086 | 19 175 210 682 Wheels . | . . . . Hover . | . . . . Flight . | . . . . Fastest Speed 50 | 50 120 120 50 Average Speed 145 | 88 120 158 150 Slowest Speed 260 | 120 120 260 190 Overloaded Moves . | . . . . Propulsion Burnouts . | . . . . Robots Hopped . | . . . . Potential Cave-ins . | . . . . Cave-ins Triggered . | . . . . Exploration Rate (%) 23 | 3 24 19 46 Regions Visited 3 Branch Regions . Pre-discovered Areas . | . . . . Known Exits Taken . | . . . . Unknown Exits Taken 3 | 1 1 1 . Scrap Searched . | . . . . Spaces Dug . | . . . . Terrain Destroyed 10 | . . . 10 Melee . | . . . . Projectile . | . . . . AOE 10 | . . . 10 Terrain Rammed . | . . . . Walls Destroyed . | . . . . Machines Disabled . | . . . . Actions | -11 -10 -9 -8 --------- Run | Yrd Mat Mat Mat Total 1935 | 47 298 482 1108 Wait 532 | . 86 236 210 Move 1133 | 35 174 209 715 Hop . | . . . . Pick Up 47 | 6 8 9 24 Fast Attach 8 | 2 1 . 5 Attach 34 | 4 2 5 23 Detach . | . . . . Swap 3 | . 1 1 1 Drop 18 | . 3 4 11 Fire 160 | . 23 18 119 Melee . | . . . . Ram . | . . . . Kick . | . . . . Crush . | . . . . Escape Stasis . | . . . . Rewire . | . . . . Trap . | . . . . Miscellaneous . | . . . . Route ------- -11/Scrapyard -10/Materials -9/Materials -8/Materials (discovered 1 exit: [*Fac]) History --------- Turn | Location | Event 11 | -11/Scrapyard | Discovered new exit (range 14) 45 | -11/Scrapyard | Entered Materials 315 | -10/Materials | Build established: Mutant 347 | -10/Materials | Discovered new exit (range 15) 423 | -10/Materials | Entered another Materials area 423 | -9/Materials | Evolved 2 slots: Utility x1, Weapon x1 711 | -9/Materials | Build established: Tank 995 | -9/Materials | Discovered new exit (range 16) 1061 | -9/Materials | Entered another Materials area 1061 | -8/Materials | Evolved 2 slots: Propulsion x1, Utility x1 1249 | -8/Materials | Lost 4 parts (1n2u1w) 1583 | -8/Materials | Build established: Scavenger-Gunner 2134 | -8/Materials | Build established: Scavenger-Tank 2388 | -8/Materials | Lost 6 parts (2n1u3w) 2649 | -8/Materials | Core integrity fell below 50% 2690 | -8/Materials | Discovered new exit (range 11) 2691 | -8/Materials | Core integrity fell below 20% 2729 | -8/Materials | Destroyed by H-61 Shepherd with Heavy Assault Cannon Last Messages --------------- 02701_ G-47 Trooper destroyed. 02701_ Backup Plating I destroyed. 02702_ K-01 Serf collects debris. 02703_ Med. Storage Unit destroyed. 02709_ K-01 Serf collects debris. 02715_ Acquired Deuterium Engine. 02716_ Penetrated by Slug. 02716_ Knocked back. 02717_ K-01 Serf collects debris. 02718_ System corrupted: Substantial component data lost. 02718_ Acquired 3 matter. 02720_ K-01 Serf collects debris. 02720_ U-05 Engineer builds a Wall. 02723_ Imp. Carbon-fiber Leg destroyed. 02723_ Knocked back. 02724_ K-01 Serf collects debris. 02725_ Adv. Weight Redist. System destroyed. 02727_ K-01 Serf collects debris. 02729_ Penetrated by Slug. 02729_ Deuterium Engine destroyed. Map ----- +----------------------------------------------------+ | # # % ##### # #???# " | | ?###############+############ """ #???# | | ?????????????# ## / """ #???# | | ?????????????# "" """ ## """ #???##### | | ?????????????#" " " """ ## #???????? | | ?????????????#T " " """ ###/#######???????? | | ?????????????#" #?# #?????????????? | | ?????????????# % #? ?????????????? | | ????????#?##########+####### ?????????? | | ????????# #%%!* ?????????? | | ????????# """"""" # =!###"## ?????????? | | ????????# """"""" #*[!#????? #######?????? | | ????????# """"""" +=% #?????###### #??#### | | ????????# """"""" #% #??????????# ####"T" | | ????????# """"""" #! =##########?#! ## | | ????????# #%!%# #?# ## | | ????????# "T" #%* # """ #?##+##### | | ????????###########%! # """ ### | | ?????????????????## # """ + | | ?????????????????##%u + ### | | ??????????????????# H # """ #?# | | ??????????????????#! # """ #?# | | ???????####+#######% # """ ### | | ???????# =%%k! # + ## | | ???????# < %g! ###+################+##? | | ???????# !=t=@#?# #??????????????????? | | ???????# #####+####?# #??????????????????? | | ??????# ????? ?????# #??????????????????? | | ??????#//!!?????= ?????# #??????????????????? | | ??????#//!??????= ?????# #??????????????????? | | ??????###?????? ?????# #??????????????????? | | ?????????????? ?????# #??????????????????? | | ?????????????? ?????? ???????????????????? | | ?????????????# ! ?????? ???????????????????? | | ?????????????# ??????? ???????????????????? | | ?????????????#####??????? ???????????????????? | | ????????????????????????? ???????????????????? | | ????????????????????????? ???????????????????? | | ????????????????????????? ???????????????????? | | ?????????????????????????????????????????????? | | ?????????????????????????????????????????????? | | ?????????????????????????????????????????????? | | ?????????????????????????????????????????????? | | ?????????????????????????????????????????????? | | ?????????????????????????????????????????????? | | ?????????????????????????????????????????????? | | ?????????????????????????????????????????????? | | ?????????????????????????????????????????????? | | ?????????????????????????????????????????????? | | ?????????????????????????????????????????????? | +----------------------------------------------------+ Best States ------------- Heat Dissipation 45 Energy Generation 14 Energy Capacity 275 Matter Stores 500 Matter Capacity 500 Sight Range 16 Terrain Scan Density 10 Additional Mass Support 9 Armor Coverage 300 Evasion (%) 55 Item Schematics ----------------- Cryofiber Web | -8/Materials | Scanalyzed Deuterium Engine | -8/Materials | Scanalyzed Trap Scanner | -8/Materials | Scanalyzed Robot Schematics ------------------ None Fabricated ------------ Nothing Repaired ---------- Nothing Alien Tech Used ----------------- None Achievements -------------- None Challenges ------------ None Game ------ Seed DefenseGlidesysStripper Manual? 0 Play Time 00:34:14 Cumulative 49.5 hours Start 2025.05.14 @ 21:08:45 End 2025.05.14 @ 21:45:21 Sessions 1 Manual Loads 0 Difficulty Rogue Special Mode None Game No. 90 Rogue 78 Adventurer 12 Explorer 0 Win Type - Total 0 Types 0/0/0/0/0/0/0/0/0/0 Lore% 10 Gallery% 23 Achievement% 19 Wizard Run 0 Options --------- Layout 0 ASCII 0 Keyboard 0 Movement Mouse Keybinds 0 Fullscreen 2 Font 18/SmallcapsGlow Map View 38x25 Zoom Use 98% Tactical HUD 1 Map Filters NONE Filters NONE Steam 1 RUN: 7efba1a5-010c-4f3d-8bf9-5363bc2d08ca